[Event "36th Indian-ch U13 Girls 2023"]
[Site "Secunderabad"]
[Date "2023.12.08"]
[Round "8.9"]
[White "Kalyani Sirin"]
[Black "Saranya Devi Narahari"]
[Result "1-0"]
[ECO "B40"]
[WhiteElo "1802"]
[BlackElo "1392"]
[Annotator "NA RC"]
[PlyCount "135"]
[EventDate "2023.12.04"]
[EventType "swiss"]
[EventCountry "IND"]
[SourceTitle "playchess.com"]
[Source "ChessBase"]
[SourceQuality "1"]
[TimeControl "5400+30"]

1. e4 {[%emt 0:00:08]} c5 {[%emt 0:01:30]} 2. Nf3 {[%emt 0:00:09]} e6 {[%emt 0:01:30]} 3. b3 {[%emt 0:00:06]} Nf6 {[%emt 0:01:35]} 4. e5 {[%emt 0:03:00]} Nd5 {[%emt 0:00:23]} 5. Bb2 {[%emt 0:04:19]} Nc6 {[%emt 0:02:10]} 6. d3 {[%emt 0:12:04]} Be7 {[%emt 0:14:44]} 7. Nbd2 {[%emt 0:06:59]} O-O {[%emt 0:07:07]} 8. Ne4 {[%emt 0:02:32]} f6 {[%emt 0:00:17]} 9. c4 {[%emt 0:11:52]} Qa5+ {[%emt 0:08:17]} 10. Nfd2 {[%emt 0:07:23]} fxe5 {[%emt 0:12:27]} 11. cxd5 {[%emt 0:09:08]} exd5 {[%emt 0:00:17]} 12. Ng3 {[%emt 0:03:05]} Bg5 {[%emt 0:02:08]} 13. Be2 {[%emt 0:05:56]} d6 {[%emt 0:07:24]} 14. a3 {[%emt 0:01:19]} Be6 {[%emt 0:08:15]} 15. b4 {[%emt 0:02:19]} cxb4 {[%emt 0:02:27]} 16. O-O {[%emt 0:00:27]} Bxd2 {[%emt 0:03:51]} 17. Qxd2 {[%emt 0:00:10]} bxa3 {[%emt 0:00:21]} 18. Qxa5 {[%emt 0:02:51]} Nxa5 {[%emt 0:00:07]} 19. Rxa3 {[%emt 0:01:07]} b6 {[%emt 0:05:30]} 20. Rc1 {[%emt 0:05:36]} Rfc8 {[%emt 0:05:07]} 21. Rac3 {[%emt 0:03:50]} b5 {[%emt 0:02:23]} 22. Rxc8+ {[%emt 0:05:28]} Rxc8 {[%emt 0:00:05]} 23. Rxc8+ {[%emt 0:00:09]} Bxc8 {[%emt 0:00:04]} 24. Ba3 {[%emt 0:02:30]} Nb7 {[%emt 0:01:36]} 25. d4 {[%emt 0:01:26]} Bd7 {[%emt 0:00:43]} 26. Bd1 {[%emt 0:01:09]} g6 {[%emt 0:01:48]} (26... Kf7 $11) 27. Bb3 {[%emt 0:01:10]} (27. dxe5 $1 $14 a5 28. exd6) 27... Bc6 {[%emt 0:00:06]} 28. Ne4 {[%emt 0:02:16]} a5 {[%emt 0:04:47]} 29. Nxd6 {[%emt 0:01:21]} b4 {[%emt 0:05:26]} 30. Nxb7 {[%emt 0:00:13]} Bxb7 {[%emt 0:00:11]} 31. Bc1 {[%emt 0:00:45]} Bc6 {[%emt 0:01:00]} 32. Bd2 {[%emt 0:04:18]} a4 {[%emt 0:01:20]} 33. Bd1 {[%emt 0:00:19]} Kg7 {[%emt 0:01:04]} 34. Bxb4 {[%emt 0:00:21]} exd4 {[%emt 0:00:11]} 35. Kf1 {[%emt 0:00:18]} Kf6 {[%emt 0:00:24]} 36. Ke2 {[%emt 0:00:27]} Ke5 {[%emt 0:00:34]} 37. Bc2 {[%emt 0:00:14]} Bb5+ {[%emt 0:00:11]} 38. Bd3 {[%emt 0:00:07]} Bc4 {[%emt 0:00:04]} 39. Bc5 {[%emt 0:00:24]} g5 {[%emt 0:00:46]} 40. Kd2 {[%emt 0:00:41]} h5 {[%emt 0:00:15]} 41. f3 {[%emt 0:01:58]} g4 {[%emt 0:01:01]} 42. fxg4 {[%emt 0:00:36]} hxg4 {[%emt 0:00:06]} 43. Bb4 {[%emt 0:00:36]} Ke6 {[%emt 0:01:33]} 44. Bf8 {[%emt 0:00:15]} Kf6 {[%emt 0:00:44]} 45. Ba3 {[%emt 0:00:53]} Ke6 {[%emt 0:00:34]} 46. Bb4 {[%emt 0:00:31]} Kf6 {[%emt 0:00:31]} 47. Bf8 {[%emt 0:00:09]} Bb3 {[%emt 0:00:19]} 48. Bb5 {[%emt 0:00:24]} Kg5 {[%emt 0:00:43]} 49. Kd3 {[%emt 0:00:43]} Bd1 {[%emt 0:00:31]} 50. Bd6 {[%emt 0:00:25]} g3 {[%emt 0:00:24]} 51. Bxg3 {[%emt 0:00:32]} a3 {[%emt 0:00:23]} 52. Be5 {[%emt 0:00:04]} a2 {[%emt 0:00:14]} 53. Bxd4 {[%emt 0:00:04]} Bg4 {[%emt 0:00:21]} 54. Ba1 {[%emt 0:00:26]} Bf5+ {[%emt 0:00:08]} 55. Kd4 {[%emt 0:00:08]} Be4 {[%emt 0:00:05]} 56. g3 {[%emt 0:01:55]} Kg4 {[%emt 0:00:09]} 57. Bd7+ {[%emt 0:00:24]} Kf3 {[%emt 0:00:11]} 58. Bc6 {[%emt 0:00:13]} Kg2 {[%emt 0:00:48]} 59. g4 {[%emt 0:00:43]} Kxh2 {[%emt 0:00:10]} 60. Bxd5 {[%emt 0:00:09]} Bg6 {[%emt 0:00:38]} 61. Ke5 {[%emt 0:00:08]} Kg3 {[%emt 0:00:26]} 62. Be6 {[%emt 0:00:17]} Kh4 {[%emt 0:01:01]} 63. Kf4 {[%emt 0:00:11]} Be8 {[%emt 0:00:19]} 64. Bxa2 {[%emt 0:01:05]} Bg6 {[%emt 0:00:52]} 65. Bc4 {[%emt 0:00:20]} Be4 {[%emt 0:01:30]} 66. Bf1 {[%emt 0:00:15]} Bg2 {[%emt 0:01:24]} 67. Bf6+ {[%emt 0:00:06]} Kh3 {[%emt 0:00:00]} 68. Bxg2+ {[%emt 0:00:03]} 1-0

[Event "36th Indian-ch U13 Girls 2023"]
[Site "Secunderabad"]
[Date "2023.12.08"]
[Round "8.10"]
[White "Yasaswi Krishna Bommi"]
[Black "Anushka Jain"]
[Result "1-0"]
[ECO "C00"]
[WhiteElo "1543"]
[BlackElo "1359"]
[Annotator "NA RC"]
[PlyCount "83"]
[EventDate "2023.12.04"]
[EventType "swiss"]
[EventCountry "IND"]
[SourceTitle "playchess.com"]
[Source "ChessBase"]
[SourceQuality "1"]
[TimeControl "5400+30"]

1. Nf3 {[%emt 0:00:03]} Nf6 {[%emt 0:04:13]} 2. g3 {[%emt 0:00:05]} e6 {[%emt 0:00:06]} 3. Bg2 {[%emt 0:00:07]} d5 {[%emt 0:00:05]} 4. d3 {[%emt 0:00:18]} Be7 {[%emt 0:01:31]} 5. O-O {[%emt 0:00:14]} O-O {[%emt 0:00:40]} 6. Nbd2 {[%emt 0:01:27]} c5 {[%emt 0:03:44]} 7. e4 {[%emt 0:00:38]} Nc6 {[%emt 0:01:02]} 8. Re1 {[%emt 0:02:30]} Qc7 {[%emt 0:02:33]} 9. Qe2 {[%emt 0:05:09]} b5 {[%emt 0:11:30]} 10. e5 {[%emt 0:05:23]} Nd7 {[%emt 0:06:21]} 11. Nf1 {[%emt 0:04:58]} Re8 {[%emt 0:04:50]} 12. Bf4 {[%emt 0:04:13]} Nf8 {[%emt 0:03:23]} 13. g4 {[%emt 0:07:30]} Ng6 {[%emt 0:06:41]} 14. Bg3 {[%emt 0:01:57]} Qd8 {[%emt 0:01:26]} 15. c3 {[%emt 0:04:54]} f5 16. exf6 {[%emt 0:00:30]} gxf6 17. Ne3 {[%emt 0:00:30]} Bb7 18. h4 {[%emt 0:00:30]} d4 19. cxd4 {[%emt 0:00:30]} cxd4 20. Nc2 {[%emt 0:00:30]} e5 21. Nd2 {[%emt 0:00:30]} Rc8 22. Ne4 {[%emt 0:00:30]} Kg7 23. h5 {[%emt 0:00:30]} Nh8 24. Bh4 {[%emt 0:00:30]} h6 25. Bh3 {[%emt 0:00:30]} Rc7 26. Qf3 {[%emt 0:00:30]} Bc8 27. Kh1 {[%emt 0:00:30]} Nf7 28. Na3 {[%emt 0:00:30]} a6 29. Rac1 {[%emt 0:00:30]} Bd7 30. Rc2 {[%emt 0:00:30]} Ng5 31. Bxg5 {[%emt 0:00:30]} fxg5 32. Rec1 {[%emt 0:00:30]} Rf8 33. Qe2 {[%emt 0:00:30]} Rc8 34. Ng3 {[%emt 0:00:30]} Bf6 35. Bg2 {[%emt 0:00:30]} Ne7 36. Ne4 {[%emt 0:00:30]} Nc6 37. Nd6 {[%emt 0:00:30]} Rc7 38. Bxc6 {[%emt 0:00:30]} Bxc6+ 39. Rxc6 {[%emt 0:00:30]} Rxc6 40. Rxc6 {[%emt 0:00:30]} Qd7 41. Nf5+ {[%emt 0:00:30]} Kh7 42. Qe4 {[%emt 0:00:30]} 1-0

[Event "36th Indian-ch U13 Girls 2023"]
[Site "Secunderabad"]
[Date "2023.12.08"]
[Round "9.1"]
[White "Shreya G Hipparagi"]
[Black "Aamuktha Guntaka"]
[Result "1-0"]
[ECO "B48"]
[WhiteElo "1576"]
[BlackElo "1532"]
[Annotator "NA COMBH"]
[PlyCount "99"]
[EventDate "2023.12.04"]
[EventType "swiss"]
[EventCountry "IND"]
[SourceTitle "playchess.com"]
[Source "ChessBase"]
[SourceQuality "1"]
[TimeControl "5400+30"]

1. e4 {[%emt 0:00:37]} c5 {[%emt 0:01:10]} 2. Nf3 {[%emt 0:00:06]} e6 {[%emt 0:00:16]} 3. d4 {[%emt 0:00:38]} cxd4 {[%emt 0:00:36]} 4. Nxd4 {[%emt 0:00:05]} Nf6 {[%emt 0:00:17]} 5. Nc3 {[%emt 0:00:06]} Nc6 {[%emt 0:00:14]} 6. a3 {[%emt 0:00:05]} Be7 {[%emt 0:00:14]} 7. Be3 {[%emt 0:00:05]} O-O {[%emt 0:00:40]} 8. Be2 {[%emt 0:00:11]} a6 {[%emt 0:00:31]} 9. O-O {[%emt 0:00:32]} Qc7 {[%emt 0:01:00]} 10. Kh1 {[%emt 0:01:46]} Rd8 {[%emt 0:08:47]} 11. Qe1 {[%emt 0:13:37]} d6 {[%emt 0:06:41]} 12. f4 {[%emt 0:02:56]} Bd7 {[%emt 0:02:43]} 13. Qf2 {[%emt 0:01:15]} Be8 {[%emt 0:16:56]} 14. Bf3 {[%emt 0:02:11]} Nd7 {[%emt 0:08:46]} 15. f5 {[%emt 0:13:23]} Nxd4 {[%emt 0:10:14]} 16. Bxd4 {[%emt 0:00:07]} Bf6 {[%emt 0:04:33]} 17. Bxf6 {[%emt 0:07:13]} Nxf6 {[%emt 0:00:10]} 18. g4 {[%emt 0:00:39]} Qc5 {[%emt 0:12:41]} 19. Qxc5 {[%emt 0:05:51]} dxc5 {[%emt 0:00:06]} 20. e5 {[%emt 0:00:05]} Nd5 {[%emt 0:01:11]} 21. Nxd5 {[%emt 0:08:25]} exd5 {[%emt 0:03:24]} 22. Rad1 {[%emt 0:00:05]} Bc6 {[%emt 0:01:07]} 23. Rd2 {[%emt 0:00:17]} d4 {[%emt 0:04:24]} 24. Kg2 {[%emt 0:01:44]} Re8 {[%emt 0:04:32]} 25. Re1 {[%emt 0:00:10]} Rad8 {[%emt 0:01:54]} 26. Bxc6 {[%emt 0:03:07]} bxc6 {[%emt 0:00:07]} 27. Kf3 {[%emt 0:02:26]} Rd5 {[%emt 0:01:28]} 28. Kf4 {[%emt 0:00:19]} Rb8 {[%emt 0:06:02]} 29. b3 {[%emt 0:00:16]} d3 {[%emt 0:02:34]} 30. Re3 {[%emt 0:02:10]} dxc2 {[%emt 0:01:10]} 31. Rxc2 {[%emt 0:00:05]} Kf8 {[%emt 0:00:53]} 32. Rec3 {[%emt 0:01:07]} Ke7 {[%emt 0:00:33]} 33. h3 {[%emt 0:01:14]} Kd7 {[%emt 0:00:30]} 34. Re2 {[%emt 0:00:45]} Re8 {[%emt 0:00:31]} 35. Ree3 {[%emt 0:00:25]} Rd4+ {[%emt 0:00:32]} 36. Re4 {[%emt 0:00:35]} Rd5 {[%emt 0:00:28]} 37. h4 {[%emt 0:00:17]} g6 {[%emt 0:00:31]} 38. Rce3 {[%emt 0:00:42]} Kc7 {[%emt 0:00:32]} 39. Kg5 {[%emt 0:00:12]} gxf5 {[%emt 0:00:30]} 40. gxf5 {[%emt 0:00:07]} Rg8+ {[%emt 0:00:31]} 41. Kf6 {[%emt 0:00:07]} Rd7 {[%emt 0:00:14]} 42. Rc4 {[%emt 0:00:30]} h5 {[%emt 0:00:37]} 43. Rxc5 {[%emt 0:00:15]} Rg4 {[%emt 0:00:06]} 44. Rec3 {[%emt 0:00:10]} Rxh4 {[%emt 0:00:18]} 45. Rxc6+ {[%emt 0:00:04]} Kb7 {[%emt 0:00:06]} 46. R6c4 {[%emt 0:00:39]} Rh2 {[%emt 0:00:26]} 47. Rb4+ {[%emt 0:00:20]} Ka7 {[%emt 0:00:08]} 48. Re4 {[%emt 0:00:12]} Rf2 {[%emt 0:00:15]} 49. Rh3 {[%emt 0:00:11]} Rb2 {[%emt 0:00:25]} 50. e6 {[%emt 0:00:18]} 1-0

[Event "36th Indian-ch U13 Girls 2023"]
[Site "Secunderabad"]
[Date "2023.12.08"]
[Round "9.2"]
[White "Kirthika B"]
[Black "Gorli Nyna"]
[Result "1-0"]
[ECO "B42"]
[WhiteElo "1605"]
[BlackElo "1652"]
[Annotator "NA COMBH"]
[PlyCount "95"]
[EventDate "2023.12.04"]
[EventType "swiss"]
[EventCountry "IND"]
[SourceTitle "playchess.com"]
[Source "ChessBase"]
[SourceQuality "1"]
[TimeControl "5400+30"]

1. e4 {[%emt 0:00:03]} c5 {[%emt 0:00:06]} 2. Nf3 {[%emt 0:00:04]} e6 {[%emt 0:00:04]} 3. d4 {[%emt 0:00:04]} cxd4 {[%emt 0:00:03]} 4. Nxd4 {[%emt 0:00:05]} a6 {[%emt 0:00:03]} 5. Bd3 {[%emt 0:00:09]} Nc6 {[%emt 0:00:05]} 6. Nxc6 {[%emt 0:00:04]} bxc6 {[%emt 0:01:18]} 7. c4 {[%emt 0:06:27]} Nf6 {[%emt 0:03:08]} 8. O-O {[%emt 0:01:46]} Qc7 {[%emt 0:02:33]} 9. Nc3 {[%emt 0:00:57]} Be7 {[%emt 0:01:03]} 10. Qe2 {[%emt 0:02:49]} e5 {[%emt 0:01:49]} 11. f4 {[%emt 0:03:19]} d6 {[%emt 0:00:46]} 12. h3 {[%emt 1:20:43]} Rb8 {[%emt 0:08:26]} 13. Kh1 {[%emt 0:00:00]} exf4 {[%emt 0:02:28]} 14. Bxf4 {[%emt 0:00:00]} Nd7 {[%emt 0:00:06]} 15. Rab1 {[%emt 0:00:00]} O-O {[%emt 0:03:17]} 16. b4 {[%emt 0:00:00]} Ne5 {[%emt 0:03:50]} 17. Rfc1 {[%emt 0:00:00]} Bf6 {[%emt 0:16:29]} 18. a4 {[%emt 0:00:00]} Ng6 {[%emt 0:02:23]} 19. Bg3 {[%emt 0:00:00]} Bxc3 {[%emt 0:08:21]} 20. Rxc3 {[%emt 0:00:00]} c5 {[%emt 0:00:06]} 21. b5 {[%emt 0:00:00]} Ne5 {[%emt 0:04:24]} 22. Rcb3 {[%emt 0:00:00]} axb5 {[%emt 0:03:43]} 23. Bxe5 {[%emt 0:00:00]} dxe5 {[%emt 0:00:04]} 24. cxb5 {[%emt 0:00:00]} Be6 {[%emt 0:08:13]} 25. Bc4 {[%emt 0:00:00]} Bxc4 {[%emt 0:00:05]} 26. Qxc4 {[%emt 0:00:00]} Rfd8 {[%emt 0:01:19]} 27. Rc3 {[%emt 0:00:00]} Qb7 {[%emt 0:00:42]} 28. Rd3 {[%emt 0:00:00]} Rd4 {[%emt 0:04:25]} 29. Rxd4 {[%emt 0:00:00]} cxd4 {[%emt 0:00:07]} 30. Qd5 {[%emt 0:00:00]} Qc7 {[%emt 0:04:24]} 31. b6 {[%emt 0:00:00]} Qc2 {[%emt 0:00:08]} 32. Rf1 {[%emt 0:00:00]} Rf8 {[%emt 0:04:01]} 33. b7 {[%emt 0:00:00]} Qb2 {[%emt 0:06:41]} 34. a5 {[%emt 0:00:00]} h6 {[%emt 0:01:48]} 35. a6 {[%emt 0:01:49]} Qb6 {[%emt 0:02:07]} 36. Qc4 {[%emt 0:00:29]} h5 {[%emt 0:00:38]} 37. Rc1 {[%emt 0:01:04]} d3 {[%emt 0:00:42]} 38. Qxd3 {[%emt 0:00:32]} Qa5 {[%emt 0:03:14]} 39. Qd6 {[%emt 0:01:18]} Re8 {[%emt 0:00:35]} 40. b8=Q {[%emt 0:00:32]} Rxb8 {[%emt 0:00:05]} 41. Qxb8+ {[%emt 0:00:04]} Kh7 {[%emt 0:00:07]} 42. a7 {[%emt 0:00:15]} Qd2 {[%emt 0:00:04]} 43. Qc8 {[%emt 0:00:17]} Kg6 {[%emt 0:00:34]} 44. a8=Q {[%emt 0:00:21]} Kg5 {[%emt 0:00:07]} 45. Qd8+ {[%emt 0:00:35]} Qxd8 {[%emt 0:00:14]} 46. Qxd8+ {[%emt 0:00:14]} f6 {[%emt 0:00:07]} 47. Qd7 {[%emt 0:00:23]} Kh6 {[%emt 0:00:16]} 48. Rc7 {[%emt 0:00:03]} 1-0

[Event "36th Indian-ch U13 Girls 2023"]
[Site "Secunderabad"]
[Date "2023.12.08"]
[Round "9.3"]
[White "Akshaya Sathi"]
[Black "Nihira Koul"]
[Result "1-0"]
[ECO "C11"]
[WhiteElo "1542"]
[BlackElo "1484"]
[Annotator "NA COMBH"]
[PlyCount "99"]
[EventDate "2023.12.04"]
[EventType "swiss"]
[EventCountry "IND"]
[SourceTitle "playchess.com"]
[Source "ChessBase"]
[SourceQuality "1"]
[TimeControl "5400+30"]

1. e4 {[%emt 0:01:29]} e6 {[%emt 0:00:23]} 2. d4 {[%emt 0:00:15]} d5 {[%emt 0:00:12]} 3. Nc3 {[%emt 0:00:25]} Nf6 {[%emt 0:00:45]} 4. e5 {[%emt 0:00:38]} Nfd7 {[%emt 0:00:10]} 5. f4 {[%emt 0:00:05]} c5 {[%emt 0:00:14]} 6. Nf3 {[%emt 0:00:07]} Nc6 {[%emt 0:00:16]} 7. Be3 {[%emt 0:00:09]} Qb6 {[%emt 0:07:51]} 8. Na4 {[%emt 0:02:55]} Qa5+ {[%emt 0:00:49]} 9. c3 {[%emt 0:00:01]} cxd4 {[%emt 0:01:03]} 10. b4 {[%emt 0:01:16]} Qc7 {[%emt 0:04:43]} 11. Nxd4 {[%emt 0:01:10]} Nxd4 {[%emt 0:01:44]} 12. Bxd4 {[%emt 0:01:46]} Be7 {[%emt 0:01:52]} 13. Bd3 {[%emt 0:03:35]} Nb8 {[%emt 0:04:58]} 14. a3 {[%emt 0:07:37]} Nc6 {[%emt 0:00:51]} 15. Be3 {[%emt 0:01:16]} Bd7 {[%emt 0:02:05]} 16. O-O {[%emt 0:01:11]} O-O {[%emt 0:03:49]} 17. Rf3 {[%emt 0:10:37]} f5 {[%emt 0:03:30]} 18. Nc5 {[%emt 0:03:21]} b6 {[%emt 0:01:49]} 19. Nb3 {[%emt 0:03:36]} Be8 {[%emt 0:01:14]} 20. Rh3 {[%emt 0:01:15]} Bf7 {[%emt 0:01:28]} 21. Qf3 {[%emt 0:05:36]} Nxe5 {[%emt 0:04:32]} 22. fxe5 {[%emt 0:08:56]} Qxc3 {[%emt 0:00:20]} 23. Qd1 {[%emt 0:04:49]} Qxe5 {[%emt 0:00:08]} 24. Bd4 {[%emt 0:00:11]} Qd6 {[%emt 0:00:14]} 25. Qe2 {[%emt 0:02:21]} Bf6 {[%emt 0:01:36]} 26. Re1 {[%emt 0:01:01]} Rfe8 {[%emt 0:02:28]} 27. Be5 {[%emt 0:06:58]} Bxe5 {[%emt 0:05:04]} 28. Qxe5 {[%emt 0:31:54]} Rad8 {[%emt 0:07:37]} 29. Nd4 {[%emt 0:00:00]} Qxe5 {[%emt 0:02:04]} 30. Rxe5 {[%emt 0:00:00]} Rd6 {[%emt 0:00:10]} 31. Rhe3 {[%emt 0:00:00]} Rc8 {[%emt 0:00:48]} 32. Re1 {[%emt 0:00:00]} g6 {[%emt 0:01:50]} 33. Bb5 {[%emt 0:00:00]} Rc3 {[%emt 0:02:13]} 34. a4 {[%emt 0:00:00]} Ra3 {[%emt 0:00:58]} 35. Nxe6 {[%emt 0:00:00]} a6 {[%emt 0:00:39]} 36. Bxa6 {[%emt 0:00:00]} Rxa4 {[%emt 0:00:08]} 37. b5 {[%emt 0:00:00]} Re4 {[%emt 0:01:48]} 38. Ng5 {[%emt 0:00:00]} Rxe1+ {[%emt 0:00:20]} 39. Rxe1 {[%emt 0:00:00]} d4 {[%emt 0:00:28]} 40. Nxf7 {[%emt 0:00:00]} Kxf7 {[%emt 0:00:04]} 41. Kf2 {[%emt 0:00:00]} Kf6 {[%emt 0:00:21]} 42. Ke2 {[%emt 0:00:00]} Ke5 {[%emt 0:01:17]} 43. Kd3+ {[%emt 0:00:00]} Kd5 {[%emt 0:00:31]} 44. Bb7+ {[%emt 0:00:00]} Kc5 {[%emt 0:00:09]} 45. Bc6 {[%emt 0:00:00]} Rd8 {[%emt 0:00:45]} 46. Rc1+ {[%emt 0:00:00]} Kd6 {[%emt 0:01:11]} 47. Kxd4 {[%emt 0:00:00]} Rc8 {[%emt 0:00:12]} 48. Ra1 {[%emt 0:00:00]} Rb8 {[%emt 0:00:37]} 49. Ra7 {[%emt 0:00:00]} h6 {[%emt 0:00:16]} 50. Rg7 {[%emt 0:00:00]} 1-0

[Event "36th Indian-ch U13 Girls 2023"]
[Site "Secunderabad"]
[Date "2023.12.08"]
[Round "9.4"]
[White "Siddhi Rao"]
[Black "Kalyani Sirin"]
[Result "1/2-1/2"]
[ECO "C54"]
[WhiteElo "1467"]
[BlackElo "1802"]
[Annotator "NA COMBH"]
[PlyCount "98"]
[EventDate "2023.12.04"]
[EventType "swiss"]
[EventCountry "IND"]
[SourceTitle "playchess.com"]
[Source "ChessBase"]
[SourceQuality "1"]
[TimeControl "5400+30"]

1. e4 {[%emt 0:00:06]} e5 {[%emt 0:00:31]} 2. Nf3 {[%emt 0:00:08]} Nc6 {[%emt 0:00:10]} 3. Bc4 {[%emt 0:00:07]} Bc5 {[%emt 0:00:07]} 4. c3 {[%emt 0:00:08]} Nf6 {[%emt 1:31:42]} 5. d3 {[%emt 0:00:06]} d6 {[%emt 0:00:00]} 6. O-O {[%emt 0:00:07]} a5 {[%emt 0:00:00]} 7. Nbd2 {[%emt 0:00:20]} O-O {[%emt 0:00:00]} 8. h3 {[%emt 0:00:11]} Ba7 {[%emt 0:00:00]} 9. Re1 {[%emt 0:00:53]} Be6 {[%emt 0:00:00]} 10. Bb5 {[%emt 0:01:35]} Ne7 {[%emt 0:00:00]} 11. d4 {[%emt 0:04:45]} Ng6 {[%emt 0:00:00]} 12. Nf1 {[%emt 0:04:39]} c6 {[%emt 0:00:00]} 13. Bd3 {[%emt 0:04:04]} h6 {[%emt 0:00:00]} 14. Ng3 {[%emt 0:02:31]} Re8 {[%emt 0:00:00]} 15. Qc2 {[%emt 0:08:50]} a4 {[%emt 0:00:00]} 16. Be3 {[%emt 0:09:36]} Qc7 {[%emt 0:00:00]} 17. c4 {[%emt 0:08:46]} Qe7 {[%emt 0:00:00]} 18. d5 {[%emt 0:04:09]} Bd7 {[%emt 0:00:00]} 19. Bd2 {[%emt 0:04:06]} Rec8 {[%emt 0:00:00]} 20. Qd1 {[%emt 0:04:06]} Bb6 {[%emt 0:00:00]} 21. b3 {[%emt 0:03:57]} Qd8 {[%emt 0:00:00]} 22. b4 {[%emt 0:04:01]} a3 {[%emt 0:00:00]} 23. Qb3 {[%emt 0:03:59]} c5 {[%emt 0:00:00]} 24. Rec1 {[%emt 0:04:10]} Ba4 {[%emt 0:00:00]} 25. Qb1 {[%emt 0:02:45]} cxb4 {[%emt 0:00:00]} 26. Bxb4 {[%emt 0:00:32]} Bc5 {[%emt 0:00:00]} 27. Bxc5 {[%emt 0:04:14]} Rxc5 {[%emt 0:00:00]} 28. Qb4 {[%emt 0:02:31]} Nf4 {[%emt 0:00:00]} 29. Bf1 {[%emt 0:00:51]} Qf8 {[%emt 0:00:00]} 30. Qxa3 {[%emt 0:02:14]} Bd1 {[%emt 0:02:26]} 31. Qe3 {[%emt 0:00:32]} Bxf3 {[%emt 0:00:08]} 32. Qxf3 {[%emt 0:00:06]} Rca5 {[%emt 0:00:45]} 33. Qb3 {[%emt 0:01:57]} R8a7 {[%emt 0:00:45]} 34. Rcb1 {[%emt 0:02:36]} Nd7 {[%emt 0:00:37]} 35. Nf5 {[%emt 0:01:13]} Nc5 {[%emt 0:00:33]} 36. Qc2 {[%emt 0:00:43]} R7a6 {[%emt 0:01:23]} 37. Rb5 {[%emt 0:02:58]} Ra3 {[%emt 0:00:30]} 38. Qb1 {[%emt 0:01:08]} g6 {[%emt 0:03:00]} 39. Ne3 {[%emt 0:01:35]} Qa8 {[%emt 0:00:42]} 40. Rb2 {[%emt 0:01:03]} R3a5 {[%emt 0:00:34]} 41. Nd1 {[%emt 0:03:07]} Ra3 {[%emt 0:01:08]} 42. Ne3 {[%emt 0:00:34]} R3a5 {[%emt 0:00:26]} 43. g3 {[%emt 0:01:07]} Nh5 {[%emt 0:00:05]} 44. Nd1 {[%emt 0:00:48]} Ra3 {[%emt 0:00:48]} 45. Ne3 {[%emt 0:00:22]} Qa7 {[%emt 0:02:09]} 46. Nc2 {[%emt 0:01:13]} Rc3 {[%emt 0:02:42]} 47. Nb4 {[%emt 0:01:08]} Raa3 {[%emt 0:00:45]} 48. Kh2 {[%emt 0:01:26]} Na4 {[%emt 0:01:02]} 49. Rd2 {[%emt 0:00:37]} Nc5 {[%emt 0:01:01]} 1/2-1/2

[Event "36th Indian-ch U13 Girls 2023"]
[Site "Secunderabad"]
[Date "2023.12.08"]
[Round "9.5"]
[White "Arshiya Das"]
[Black "Singh Myra"]
[Result "1/2-1/2"]
[ECO "C68"]
[WhiteElo "1729"]
[BlackElo "1454"]
[Annotator "NA COMBH"]
[PlyCount "88"]
[EventDate "2023.12.04"]
[EventType "swiss"]
[EventCountry "IND"]
[SourceTitle "playchess.com"]
[Source "ChessBase"]
[SourceQuality "1"]
[TimeControl "5400+30"]

1. e4 {[%emt 0:00:03]} e5 {[%emt 0:00:03]} 2. Nf3 {[%emt 0:00:02]} Nc6 {[%emt 0:00:04]} 3. Bb5 {[%emt 0:00:03]} a6 {[%emt 0:00:06]} 4. Bxc6 {[%emt 0:00:03]} dxc6 {[%emt 0:00:05]} 5. O-O {[%emt 0:00:04]} Bd6 {[%emt 0:00:13]} 6. d4 {[%emt 0:00:04]} exd4 {[%emt 0:00:36]} 7. Qxd4 {[%emt 0:00:05]} f6 {[%emt 0:00:06]} 8. Nbd2 {[%emt 0:00:03]} Be6 {[%emt 0:00:36]} 9. e5 {[%emt 0:00:18]} fxe5 {[%emt 0:00:54]} 10. Nxe5 {[%emt 0:00:08]} Nf6 {[%emt 0:00:16]} 11. Re1 {[%emt 0:02:08]} O-O {[%emt 0:00:20]} 12. Ndf3 {[%emt 0:00:31]} Re8 {[%emt 0:01:17]} 13. Qh4 {[%emt 0:06:48]} Bd5 {[%emt 0:04:38]} 14. Bg5 {[%emt 0:02:27]} Be7 {[%emt 0:11:42]} 15. Rad1 {[%emt 0:10:09]} Qc8 {[%emt 0:02:14]} 16. c4 {[%emt 0:00:58]} Bxf3 {[%emt 0:01:11]} 17. Nxf3 {[%emt 0:00:48]} h6 {[%emt 0:01:30]} 18. Bc1 {[%emt 0:20:56]} Qf5 {[%emt 0:11:03]} 19. Nd4 {[%emt 0:06:05]} Qg6 {[%emt 0:01:02]} 20. Qh3 {[%emt 0:01:17]} Bc5 {[%emt 0:02:39]} 21. Be3 {[%emt 0:04:40]} Ng4 {[%emt 0:03:49]} 22. Qg3 {[%emt 0:03:48]} Bd6 {[%emt 0:02:36]} 23. f4 {[%emt 0:00:37]} Kh7 {[%emt 0:01:51]} 24. Qf3 {[%emt 0:07:01]} Nxe3 {[%emt 0:02:49]} 25. Rxe3 {[%emt 0:00:06]} Rxe3 {[%emt 0:00:33]} 26. Qxe3 {[%emt 0:00:04]} Re8 {[%emt 0:00:22]} 27. Qc1 {[%emt 0:07:47]} Qe4 {[%emt 0:02:27]} 28. Nf3 {[%emt 0:02:48]} Bxf4 {[%emt 0:00:48]} 29. Qc3 {[%emt 0:00:59]} Qg6 {[%emt 0:06:03]} 30. Kf1 {[%emt 0:01:21]} Qf7 {[%emt 0:03:50]} 31. Qd3+ {[%emt 0:02:02]} Kg8 {[%emt 0:00:43]} 32. Kg1 {[%emt 0:00:29]} Bd6 {[%emt 0:01:44]} 33. Kh1 {[%emt 0:01:20]} Qe6 {[%emt 0:02:34]} 34. g3 {[%emt 0:03:41]} Rf8 {[%emt 0:01:20]} 35. Kg2 {[%emt 0:00:38]} Qf6 {[%emt 0:01:05]} 36. b3 {[%emt 0:00:53]} Bc5 {[%emt 0:03:40]} 37. Rd2 {[%emt 0:01:42]} Re8 {[%emt 0:02:40]} 38. Re2 {[%emt 0:01:27]} Rxe2+ {[%emt 0:01:45]} 39. Qxe2 {[%emt 0:00:01]} Kf8 {[%emt 0:02:30]} 40. Ne5 {[%emt 0:01:06]} Kg8 {[%emt 0:04:09]} 41. Nf3 {[%emt 0:00:23]} b5 {[%emt 0:01:04]} 42. Qe8+ {[%emt 0:00:48]} Kh7 {[%emt 0:00:06]} 43. Qe4+ {[%emt 0:00:07]} Kg8 {[%emt 0:01:40]} 44. Qe8+ {[%emt 0:00:08]} Kh7 {[%emt 0:01:34]} 1/2-1/2